Cogmind - Beta 13 @@@ ROGUE MODE // 2024.04.02 @ 06:34:00 Player: XELQUA Result: Destroyed by G-47 Trooper with Particle Gun Performance ------------- Evolutions (2) 1000 Regions Visited (4) 800 Robots Destroyed (20) 100 Value Destroyed (662) 662 Prototype IDs (0) 0 Alien Tech Used (0) 0 Bonus (0) 0 TOTAL SCORE: 2562 Bonus ------- None Cogmind --------- Core Integrity 0/550 Matter 236/300 Energy 99/100 System Corruption 5% Temperature Danger (466) Movement Core (50) Location -8/Materials Parts ------- > --- POWER (1) -------- (None) > --- PROPULSION (2) --- (None) > --- UTILITY (4) ------ (None) > --- WEAPON (4) ------- (None) > --- INVENTORY (5) ---- Subdweller Power Source Peak State ------------ > --- POWER ------------ Subdweller Power Source > --- PROPULSION ------- Carbon-fiber Leg Makeshift Leg > --- UTILITY ---------- Sensor Array Signal Interpreter Scrap Shield > --- WEAPON ----------- EM Pulse Gun Beam Cannon Subdweller Beam Cannon Subdweller Machine Gun > --- INVENTORY -------- Subdweller Power Source Aluminum Leg [Rating: 21] Favorites ----------- Power Ion Engine Engine Ion Engine Power Core Light Nuclear Core Propulsion Aluminum Leg Leg Aluminum Leg Utility Small Storage Unit Device Structural Scanner Storage Small Storage Unit Processor Signal Interpreter Protection Scrap Shield Weapon EM Pulse Gun Energy Gun EM Pulse Gun Energy Cannon Subdweller Beam Cannon Ballistic Gun Subdweller Machine Gun Special Weapon Mining Laser Build | -11 -10 -10 -10 -8 ------- Run | Yrd Mat Min Sub Mat Slots Evolved 4 | . . . . 4 Power . | . . . . . Propulsion . | . . . . . Utility 2 | . . . . 2 Weapon 2 | . . . . 2 Parts Attached 36 | 6 14 2 9 5 Power 6 | 1 4 . 1 . Engine 5 | 1 3 . 1 . Core 1 | . 1 . . . Reactor . | . . . . . Propulsion 9 | 2 3 . 3 1 Treads . | . . . . . Leg 9 | 2 3 . 3 1 Wheel . | . . . . . Hover . | . . . . . Flight . | . . . . . Utility 8 | 1 3 1 1 2 Device 2 | . . 1 . 1 Storage 4 | 1 3 . . . Processor 1 | . . . . 1 Hackware . | . . . . . Protection 1 | . . . 1 . Artifact . | . . . . . Weapon 13 | 2 4 1 4 2 Energy Gun 9 | 2 4 . 3 . Energy Cannon 2 | . . . . 2 Ballistic Gun 1 | . . . 1 . Ballistic Cannon . | . . . . . Launcher . | . . . . . Special Weapon 1 | . . 1 . . Impact Weapon . | . . . . . Slashing Weapon . | . . . . . Piercing Weapon . | . . . . . Special Melee Weapon . | . . . . . Unidentified Prototypes . | . . . . . Parts Lost 17 | . 4 . 2 11 Power 5 | . 3 . 1 1 Propulsion 4 | . 1 . . 3 Utility 3 | . . . . 3 Weapon 5 | . . . 1 4 Highest Loss Streak 11 | . 2 . 1 11 To Critical Strikes . | . . . . . Average Slot Usage (%) 93 | . 97 100 92 71 Engine 12 | . 12 14 13 8 Leg 26 | . 28 28 28 14 Device 5 | . . 12 7 7 Storage 15 | . 27 16 7 . Protection 2 | . . . 6 6 Energy Gun 20 | . 28 14 18 7 Energy Cannon 1 | . . . . 9 Ballistic Gun 3 | . . . 7 8 Special Weapon 3 | . . 13 2 . Naked Turns 1 | . . . . 1 Heaviest Build 38 | 14 16 16 29 38 Greatest Support 35 | 20 20 20 35 35 Greatest Overweight (x) 4 | 4 . . 1 4 Average Overweight (x) . | . . . . . Largest Inventory Capacity 25 | 8 25 8 8 5 Average Capacity 7 | 7 8 8 6 5 Most Carried 8 | 5 8 8 8 4 Average Carried 5 | 2 6 7 5 2 Final Capacity 8 | 8 8 8 5 5 Final Carried 8 | 2 7 8 5 1 Class Distribution -------------------- 61% | Mutant 15% | Subdweller-Mutant 14% | Scavenger-Mutant 5% | Subdweller-Skirmisher Dominant Class ---------------- Mutant | -10/Materials Mutant | -10/Mines Subdweller-Mutant | -10/Subcaves Subdweller-Skirmisher | -8/Materials Resources | -11 -10 -10 -10 -8 ----------- Run | Yrd Mat Min Sub Mat Matter Collected 568 | 209 172 10 82 95 Remotely . | . . . . . Salvage Created 790 | . 412 . 199 179 Parts 43 | . 28 . 5 10 Haulers Intercepted . | . . . . . Recyclers Shooed 2 | . 2 . . . Parts Field Recycled . | . . . . . Retrieved Matter . | . . . . . Parts Self-Destructed 15 | . . . 15 . Prevented . | . . . . . Kills | -11 -10 -10 -10 -8 ------- Run | Yrd Mat Min Sub Mat Combat Hostiles Destroyed 15 | . 7 . 4 4 Guns 11 | . 7 . 4 . Cannons 3 | . . . . 3 Classes Destroyed 4 | . 3 . 1 . Worker 2 | . 2 . . . Watcher 3 | . 3 . . . Grunt 11 | . 7 . . 4 Subdweller 4 | . . . 4 . Best Kill Streak 6 | . 6 . 3 2 Combat Bots Only 4 | . 4 . 3 2 Max Kills in Single Turn 1 | . 1 . 1 1 Gunslinging . | . . . . . Exploded . | . . . . . Melee . | . . . . . Uniques/NPCs Destroyed . | . . . . . Combat | -11 -10 -10 -10 -8 -------- Run | Yrd Mat Min Sub Mat Hostile Shots Fired 178 | . 74 . 11 93 Missed 28 | . 14 . 1 13 Damage Taken 2355 | . 740 . 344 1271 Core 759 | . 155 . 50 554 Absorbed by Shields . | . . . . . Core Remaining (%) 59 | 100 . . 18 . Volleys Fired 93 | . 36 28 12 17 Largest 4 | . 2 2 2 4 Hottest 210 | . 80 140 125 210 Shots Fired 179 | . 71 40 22 46 Gun 139 | . 71 16 22 30 Cannon 16 | . . . . 16 Launcher . | . . . . . Special 24 | . . 24 . . Kinetic 14 | . . . 1 13 Thermal 122 | . 71 24 11 16 Explosive . | . . . . . Electromagnetic 43 | . . 16 10 17 Robot Hit Streak 12 | . 10 . 12 4 Robot Miss Streak 5 | . 3 . 2 5 Penetration Max . | . . . . . Secondary Targets 1 | . . . 1 . Max Gunslinging Chain 1 | . . . 1 . Shots Hit Robots 83 | . 43 . 16 24 Core Hits 36 | . 23 . 6 7 Critical Kills . | . . . . . Critical Parts Destroyed . | . . . . . Critical Strikes . | . . . . . Melee Attacks . | . . . . . Impact . | . . . . . Slashing . | . . . . . Piercing . | . . . . . Sneak Attacks . | . . . . . Combat Hostiles . | . . . . . Follow-up Attacks . | . . . . . Damage Inflicted 1235 | . 520 . 217 498 Guns 997 | . 504 . 217 276 Cannons 210 | . . . . 210 Explosions . | . . . . . Melee . | . . . . . Ramming 28 | . 16 . . 12 Kinetic 151 | . . . 17 134 Thermal 837 | . 504 . 123 210 Explosive . | . . . . . Electromagnetic 219 | . . . 77 142 Impact . | . . . . . Slashing . | . . . . . Piercing . | . . . . . Highest Corruption 5 | . . . . 5 Average Corruption 1 | . . . . 1 Corruption Purged . | . . . . . Corruption Blocked . | . . . . . Effects 1 | . . . . 1 Message Errors 1 | . . . . 1 Overload Shots . | . . . . . Overflow Damage 1 | . . . . 1 Projectiles . | . . . . . Explosions . | . . . . . Melee 1 | . . . . 1 Knockbacks . | . . . . . Impact . | . . . . . Kinetic . | . . . . . Secondary . | . . . . . Self-Inflicted Damage 6 | . . . . 6 Shots . | . . . . . Rammed 1 | . . . . 1 Targets Rammed 3 | . 2 . . 1 Kicked 2 | . 2 . . . Crushed . | . . . . . Highest Temperature 866 | . 299 308 21 866 Average Temperature 192 | . 130 118 13 433 Received Heat Transfer 1305 | . 417 . 60 828 Effects 35 | . 2 . . 33 Shutdowns 5 | . . . . 5 Energy Bleed 3 | . . . . 3 Interference 5 | . 2 . . 3 Matter Decay 3 | . . . . 3 Short Circuit 3 | . . . . 3 Damage (minor) 5 | . . . . 5 Damage (major) 10 | . . . . 10 Damage (core) 1 | . . . . 1 Siege Activations . | . . . . . Robots Corrupted 1 | . . . . 1 Combat Hostiles 1 | . . . . 1 Parts Fried . | . . . . . Impact Corruptions 1 | . . . . 1 Robots Melted . | . . . . . Combat Hostiles . | . . . . . Parts Melted 1 | . 1 . . . Heat Transferred 1682 | . 1150 . 162 370 Parts Sabotaged . | . . . . . Parts Stolen . | . . . . . Parts Stripped . | . . . . . Power Chain Reactions . | . . . . . Alert | -11 -10 -10 -10 -8 ------- Run | Yrd Mat Min Sub Mat Peak Influence 167 | . 167 9 . 91 Initial 1 | . . 1 . . Average 29 | . 53 4 . 29 Maximum Alert Level . | . . . . . Low Security (%) 100 | 100 100 100 . 100 Level 1 . | . . . . . Level 2 . | . . . . . Level 3 . | . . . . . Level 4 . | . . . . . Level 5 . | . . . . . High Security . | . . . . . Max Security . | . . . . . Squads Dispatched 4 | . 2 . . 2 Investigation 2 | . 1 . . 1 Extermination . | . . . . . Reinforcement 2 | . 1 . . 1 Assault . | . . . . . Garrison . | . . . . . Intercept . | . . . . . Searches Triggered . | . . . . . Construction Impeded . | . . . . . Haulers Reinforced . | . . . . . Active Scanning Responses . | . . . . . Cargo Convoy Interrupts . | . . . . . Stealth | -11 -10 -10 -10 -8 --------- Run | Yrd Mat Min Sub Mat Distress Signals . | . . . . . Communications Jammed . | . . . . . Distress Signals . | . . . . . Times Spotted 27 | . 10 . 10 7 Peak Tracking Total 5 | . 4 . 5 5 Tactical Retreats . | . . . . . Traps | -11 -10 -10 -10 -8 ------- Run | Yrd Mat Min Sub Mat Traps Triggered 2 | . 1 . 1 . Indirectly . | . . . . . Trap Hack Attempts . | . . . . . Triggered . | . . . . . Disarmed . | . . . . . Reprogrammed . | . . . . . Reused . | . . . . . Traps Extracted . | . . . . . Installed . | . . . . . Triggered . | . . . . . Machines | -11 -10 -10 -10 -8 ---------- Run | Yrd Mat Min Sub Mat Machines Disabled . | . . . . . Max in Single Turn . | . . . . . Machines Repaired . | . . . . . Machines Dismantled . | . . . . . Machines Sabotaged . | . . . . . Overloaded Fab Kills . | . . . . . Hacking | -11 -10 -10 -10 -8 --------- Run | Yrd Mat Min Sub Mat Machines Accessed 3 | . 2 . . 1 Terminals 2 | . 1 . . 1 Fabricators . | . . . . . Repair Stations . | . . . . . Recycling Units 1 | . 1 . . . Scanalyzers . | . . . . . Garrison Access . | . . . . . Total Hacks 9 | . 6 . . 3 Successful 6 | . 5 . . 1 Failed 3 | . 1 . . 2 Catastrophic 1 | . . . . 1 Database Lockouts . | . . . . . Manual 6 | . 3 . . 3 Terminals 5 | . 2 . . 3 Fabricators . | . . . . . Repair Stations . | . . . . . Recycling Units 4 | . 4 . . . Scanalyzers . | . . . . . Garrison Access . | . . . . . Terminal Hacks 2 | . 1 . . 1 Alert Level 1 | . . . . 1 Zone Layout 1 | . 1 . . . Fabricator Hacks . | . . . . . Repair Station Hacks . | . . . . . Recycling Unit Hacks 4 | . 4 . . . Process 1 | . 1 . . . Report Inventory 2 | . 2 . . . Retrieve Components 1 | . 1 . . . Scanalyzer . | . . . . . Garrison Access Hacks . | . . . . . Unauthorized Hacks . | . . . . . Terminals . | . . . . . Fabricators . | . . . . . Repair Stations . | . . . . . Recycling Units . | . . . . . Scanalyzers . | . . . . . Garrison Access . | . . . . . Data Cores Recovered . | . . . . . Used . | . . . . . Hacking Detections 3 | . 2 . . 1 Full Trace Events 1 | . . . . 1 Feedback Events 1 | . . . . 1 Corruption 1 | . . . . 1 Feedback Blocked . | . . . . . Robot Schematics Acquired . | . . . . . Robots Built . | . . . . . Authchips . | . . . . . Time . | . . . . . Total Robot Build Rating . | . . . . . Part Schematics Acquired . | . . . . . Parts Built . | . . . . . Authchips . | . . . . . Time . | . . . . . Total Part Build Rating . | . . . . . Parts Repaired . | . . . . . Time . | . . . . . Parts Recycled . | . . . . . Recycled Matter . | . . . . . Retrieved Matter . | . . . . . Retrieved Components 2 | . 2 . . . Parts Scanalyzed . | . . . . . Part Schematics Acquired . | . . . . . Parts Damaged . | . . . . . Bothacking | -11 -10 -10 -10 -8 ------------ Run | Yrd Mat Min Sub Mat Used RIF Installer . | . . . . . Robots Hacked . | . . . . . Non-combat . | . . . . . Combat . | . . . . . Robot Hacks Applied . | . . . . . Relay Couplers Released . | . . . . . Fabnet Peak Effective % . | . . . . . Robots Rewired . | . . . . . Allies Hacked . | . . . . . Hacks Repelled . | . . . . . Allies | -11 -10 -10 -10 -8 -------- Run | Yrd Mat Min Sub Mat Total Allies 1 | . . 1 . . Largest Group 1 | . . 1 1 . Highest-Rated Group 31 | . . 31 31 . Highest-Rated Ally 31 | . . 31 31 . Total Orders . | . . . . . Ally Attacks . | . . . . . Total Damage . | . . . . . Kills . | . . . . . Allies Corrupted . | . . . . . Allies Melted . | . . . . . Intel | -11 -10 -10 -10 -8 ------- Run | Yrd Mat Min Sub Mat Robot Analysis Total . | . . . . . Derelict Logs Recovered 1 | . . . 1 . Drone Launches . | . . . . . Drone Recoveries . | . . . . . Exploration | -11 -10 -10 -10 -8 ------------- Run | Yrd Mat Min Sub Mat Turns Passed 1416 | 207 460 209 409 131 Spaces Moved 792 | 158 266 72 246 50 Core 53 | 26 . . . 27 Treads . | . . . . . Legs 739 | 132 266 72 246 23 Wheels . | . . . . . Hover . | . . . . . Flight . | . . . . . Fastest Speed 50 | 50 120 120 120 50 Average Speed 128 | 122 120 120 141 140 Slowest Speed 250 | 250 120 120 190 250 Overloaded Moves . | . . . . . Propulsion Burnouts . | . . . . . Robots Hopped . | . . . . . Cave-ins Triggered . | . . . . . Exploration Rate (%) 16 | 5 40 15 20 4 Regions Visited 4 Branch Regions 2 Pre-discovered Areas . | . . . . . Known Exits Taken . | . . . . . Unknown Exits Taken 4 | 1 1 1 1 . Scrap Searched 2 | . . 2 . . Spaces Dug 4 | . . 4 . . Terrain Destroyed 16 | . . 10 . 6 Melee . | . . . . . Projectile 16 | . . 10 . 6 AOE . | . . . . . Terrain Rammed . | . . . . . Walls Destroyed . | . . . . . Machines Disabled . | . . . . . Actions | -11 -10 -10 -10 -8 --------- Run | Yrd Mat Min Sub Mat Total 972 | 171 333 106 288 74 Wait . | . . . . . Move 788 | 157 265 71 245 50 Hop . | . . . . . Pick Up 36 | 8 13 3 11 1 Fast Attach . | . . . . . Attach 20 | 6 6 . 3 5 Detach 1 | . . . 1 . Swap 16 | . 8 2 6 . Drop 15 | . 3 2 10 . Fire 93 | . 36 28 12 17 Melee . | . . . . . Ram 1 | . . . . 1 Kick 2 | . 2 . . . Crush . | . . . . . Escape Stasis . | . . . . . Rewire . | . . . . . Trap . | . . . . . Miscellaneous . | . . . . . Route ------- -11/Scrapyard -10/Materials -10/Mines -10/Subcaves (discovered 2 exits: *Mat / Rec) -8/Materials History --------- Turn | Location | Event 9 | -11/Scrapyard | Discovered new exit (range 15) 208 | -11/Scrapyard | Entered Materials 310 | -10/Materials | Build established: Mutant 459 | -10/Materials | Discovered new exit (range 16) 597 | -10/Materials | Core integrity fell below 50% 668 | -10/Materials | Entered Mines 671 | -10/Mines | Received a Mining Laser from a helpful Derelict 725 | -10/Mines | Met a Derelict bent on vengeance 736 | -10/Mines | Discovered new exit (range 5) 877 | -10/Mines | Entered Subcaves 877 | -10/Subcaves | Accompanied by 1 ally 938 | -10/Subcaves | Ambushed by Subdweller buried in earth 1017 | -10/Subcaves | Ambushed by swarm of Subdwellers 1037 | -10/Subcaves | Core integrity fell below 20% 1255 | -10/Subcaves | Identified exit to Recycling 1273 | -10/Subcaves | Discovered new exit (range 11) 1286 | -10/Subcaves | Entered Materials 1286 | -8/Materials | Evolved 4 slots: Utility x2, Weapon x2 1405 | -8/Materials | Core integrity fell below 50% 1413 | -8/Materials | Core integrity fell below 20% 1417 | -8/Materials | Destroyed by G-47 Trooper with Particle Gun Last Messages --------------- damaged (-2). 01407_ Power failure, Sub. Power Source shutdown. 01407_ U-05 Engineer builds a Wall. 01408_ Overheating: Sub. Power Source damaged (-4). 01408_ Sub. Power Source destroyed. 01412_ Overheating: Matter decay (-28). 01415_ U-05 Engineer builds a Wall. 01415_ K-01 Serf collects debris. 01416_ Critical hit (Burn: +37). 01416_ Slammed into G-47 Trooper. 01416_ Destroyed Lgt. Nuclear Core. 01416_ G-47 Trooper system corrupted by crushing effect. 01416_ Broken Signal Interpreter destroyed. 01416_ System corrupted by crushing effect (+4). 01417_ G-47 Trooper system terminally corrupted. [Achievement: Power Corrupts] 01417_ Acquired 95 matter. Map ----- +----------------------------------------------------+ | ????????????????????????????????????? | | ????????????????????????????????????? | | ????????????????????????????????????? | | ????????????????????????????????????? | | ????????????????????????????????????? | | ????????????????????????????????????? | | ????????????????????????????????????? | | ????????????????????????????????????? | | ??????????###???????????????????????? | | ?????????? #?????????????????????? | | ????????? ??????????????????????? | | ????????? ??????????????????????? | | ????????? ??????????????????????? | | ????????? ??????????????????????? | | ?????????# #??????????????????????? | | ?????????# #??????????????????????? | | ?????????# #??????????????????????? | | ?????????# #??????????????????????? | | ?????????# #???????? #???????????? | | ########## #?????## #???????????? | | # =# ####### ???????????? | | # !]] # o ! ??????????? | | # !] # k %= ??????????? | | # ! # =%= u ??????????? | | # /g[==##"##?????????????????? | | #"" """ # *@##?????????????????????? | | #"T """ # g;#?????????????????????? | | #"" """ # ##?????????????????????? | | # #####??????????????????????? | | ##########??????????????????????????? | | ????????????????????????????????????? | | ????????????????????????????????????? | | ????????????????????????????????????? | | ????????????????????????????????????? | | ????????????????????????????????????? | | ????????????????????????????????????? | | ????????????????????????????????????? | | ????????????????????????????????????? | | ????????????????????????????????????? | | ????????????????????????????????????? | | ????????????????????????????????????? | | ????????????????????????????????????? | | ????????????????????????????????????? | | ????????????????????????????????????? | | ????????????????????????????????????? | | ????????????????????????????????????? | | | | | | | | | +----------------------------------------------------+ Best States ------------- Heat Dissipation 31 Energy Generation 15 Energy Capacity 350 Matter Stores 300 Matter Capacity 300 Sight Range 16 Robot Scan Range 14 Terrain Scan Density 10 Armor Coverage 800 Evasion (%) 55 Item Schematics ----------------- None Robot Schematics ------------------ None Fabricated ------------ Nothing Alien Tech Used ----------------- None Achievements -------------- Power Corrupts Challenges ------------ None Game ------ Seed RemoteWardroneThermoblaster Manual? 0 Play Time 00:26:04 Cumulative 5.1 hours Start 2024.04.02 @ 06:09:56 End 2024.04.02 @ 06:34:00 Sessions 1 Manual Loads 0 Difficulty Rogue Special Mode None Game No. 6 Rogue 6 Adventurer 0 Explorer 0 Win Type - Total 0 Types 0/0/0/0/0/0/0/0/0 Lore% 6 Gallery% 11 Achievement% 10 Wizard Run 0 Options --------- Layout 1 ASCII 0 Keyboard 0 Movement Arrows Keybinds 0 Fullscreen 1 Font 48/Smallcaps Map View 50x35 Zoom Use 0% Tactical HUD 1 Map Filters NONE Filters NONE Steam 1 RUN: b54fe9a2-37e3-46b9-a974-c04571ad495f